[Event "38th Barczay Memorial 2019"]
[Site "Zalakaros"]
[Date "2019.05.28"]
[Round "6.10"]
[White "Tompa, Janos"]
[Black "Fucak, Emilio Milko"]
[Result "1/2-1/2"]
[ECO "C03"]
[WhiteElo "2356"]
[BlackElo "2180"]
[Annotator "ChessBase"]
[PlyCount "81"]
[EventDate "2019.05.23"]
[EventType "swiss"]
[EventCountry "HUN"]
[SourceTitle "playchess.com"]
[Source "ChessBase"]
[SourceQuality "1"]
[TimeControl "40/5400+30:1800+30"]

1. e4 {[%emt 0:00:12]} e6 {[%emt 0:01:40]} 2. d4 {[%emt 0:00:20]} d5 {[%emt 0:00:01]} 3. Nd2 {[%emt 0:00:09]} Be7 {[%emt 0:00:14]} 4. Bd3 {[%emt 0:01:19]} c5 {[%emt 0:00:40]} 5. dxc5 {[%emt 0:00:59]} Bxc5 {[%emt 0:00:23]} 6. Ngf3 {[%emt 0:01:39]} Nf6 {[%emt 0:02:10]} 7. Qe2 {[%emt 0:01:28]} Nc6 {[%emt 0:05:36]} 8. O-O {[%emt 0:02:36]} Qc7 {[%emt 0:06:12]} 9. c4 {[%emt 0:08:45]} dxe4 {[%emt 0:11:14]} 10. Nxe4 {[%emt 0:00:21]} Nxe4 {[%emt 0:01:11]} 11. Bxe4 {[%emt 0:02:11]} Bd7 {[%emt 0:03:51]} 12. Be3 {[%emt 0:03:13]} Bxe3 {[%emt 0:15:14]} 13. Qxe3 {[%emt 0:00:22]} h6 {[%emt 0:08:09]} 14. Qa3 {[%emt 0:11:01]} a5 {[%emt 0:05:29]} 15. Rfd1 {[%emt 0:05:45]} Nb4 {[%emt 0:04:11]} 16. Qc3 {[%emt 0:07:07]} O-O {[%emt 0:01:11]} 17. Ne5 {[%emt 0:04:19]} Bc6 {[%emt 0:01:21]} 18. Nxc6 {[%emt 0:08:08]} Nxc6 {[%emt 0:00:12]} 19. Rd2 {[%emt 0:07:43]} Rfd8 {[%emt 0:02:41]} 20. Rad1 {[%emt 0:00:32]} Rxd2 {[%emt 0:00:09]} 21. Rxd2 {[%emt 0:00:08]} Rd8 {[%emt 0:00:11]} 22. Rxd8+ {[%emt 0:03:04]} Qxd8 {[%emt 0:00:23]} 23. g3 {[%emt 0:01:11]} f5 {[%emt 0:06:07]} 24. Bxc6 {[%emt 0:01:08]} bxc6 {[%emt 0:00:01]} 25. Qe5 {[%emt 0:00:14]} Kf7 {[%emt 0:02:30]} 26. b3 {[%emt 0:03:41]} g5 {[%emt 0:01:14]} 27. h3 {[%emt 0:05:06]} h5 {[%emt 0:00:36]} 28. Kg2 {[%emt 0:00:43]} h4 {[%emt 0:07:06]} 29. gxh4 {[%emt 0:04:19]} gxh4 {[%emt 0:00:01]} 30. Qf4 {[%emt 0:03:49]} Kg6 {[%emt 0:02:33]} 31. a3 {[%emt 0:01:46]} c5 {[%emt 0:02:21]} 32. Qe5 {[%emt 0:00:55]} Qa8+ {[%emt 0:00:23]} 33. Kg1 {[%emt 0:00:56]} Qc6 {[%emt 0:00:08]} 34. Qh8 {[%emt 0:00:39]} Qd6 {[%emt 0:03:05]} 35. Qg8+ {[%emt 0:03:49]} Kf6 {[%emt 0:00:56]} 36. Qh8+ {[%emt 0:00:57]} Kg6 {[%emt 0:00:09]} 37. Qg8+ {[%emt 0:00:38]} Kf6 {[%emt 0:00:02]} 38. Kg2 {[%emt 0:00:35]} Qc6+ {[%emt 0:02:42]} 39. Kg1 {[%emt 0:00:57]} Qd6 {[%emt 0:01:23]} 40. Kg2 {[%emt 0:00:00]} Qc6+ {[%emt 0:00:00]} 41. Kg1 {[%emt 0:04:03]} 1/2-1/2

[Event "38th Barczay Memorial 2019"]
[Site "Zalakaros"]
[Date "2019.05.28"]
[Round "6.11"]
[White "Ianov, Viktor"]
[Black "Pasti, Aron"]
[Result "1-0"]
[ECO "A05"]
[WhiteElo "2298"]
[BlackElo "2164"]
[Annotator "ChessBase"]
[PlyCount "101"]
[EventDate "2019.05.23"]
[EventType "swiss"]
[EventCountry "HUN"]
[SourceTitle "playchess.com"]
[Source "ChessBase"]
[SourceQuality "1"]
[TimeControl "40/5400+30:1800+30"]

1. Nf3 {[%emt 0:03:32]} Nf6 {[%emt 0:01:07]} 2. g3 {[%emt 0:00:12]} g6 {[%emt 0:00:25]} 3. b3 {[%emt 0:00:25]} Bg7 {[%emt 0:00:07]} 4. Bb2 {[%emt 0:00:07]} O-O {[%emt 0:00:17]} 5. Bg2 {[%emt 0:00:07]} d5 {[%emt 0:00:45]} 6. c4 {[%emt 0:00:10]} c6 {[%emt 0:03:05]} 7. O-O {[%emt 0:00:43]} Bf5 {[%emt 0:01:05]} 8. d3 {[%emt 0:00:11]} Nbd7 {[%emt 0:00:29]} 9. Nd4 {[%emt 0:00:14]} e5 {[%emt 0:05:44]} 10. Nxf5 {[%emt 0:00:11]} gxf5 {[%emt 0:00:03]} 11. cxd5 {[%emt 0:00:43]} cxd5 {[%emt 0:02:43]} 12. Nd2 {[%emt 0:00:17]} Qe7 {[%emt 0:04:23]} 13. Nf3 {[%emt 0:00:33]} Rfd8 {[%emt 0:01:23]} 14. Rc1 {[%emt 0:00:47]} Ne8 {[%emt 0:51:25]} 15. Nh4 {[%emt 0:01:19]} Qe6 {[%emt 0:01:41]} 16. Bh3 {[%emt 0:00:12]} Nd6 {[%emt 0:00:13]} 17. e4 {[%emt 0:00:55]} dxe4 {[%emt 0:01:07]} 18. dxe4 {[%emt 0:00:08]} Nb6 {[%emt 0:07:26]} 19. Qe2 {[%emt 0:01:32]} Qh6 {[%emt 0:02:02]} 20. Bxf5 {[%emt 0:01:12]} Bf6 {[%emt 0:00:30]} 21. Qg4+ {[%emt 0:05:50]} Qg5 {[%emt 0:04:18]} 22. Qh3 {[%emt 0:04:19]} Qh6 {[%emt 0:02:54]} 23. Rfd1 {[%emt 0:02:32]} Bxh4 {[%emt 0:01:12]} 24. gxh4 {[%emt 0:00:29]} Qf4 {[%emt 0:02:40]} 25. Qg3+ {[%emt 0:00:48]} Qxg3+ {[%emt 0:00:04]} 26. hxg3 {[%emt 0:00:09]} Nxf5 {[%emt 0:00:15]} 27. exf5 {[%emt 0:00:10]} f6 {[%emt 0:00:43]} 28. Kg2 {[%emt 0:00:28]} Rac8 {[%emt 0:00:26]} 29. Rxc8 {[%emt 0:00:32]} Rxc8 {[%emt 0:00:04]} 30. Rd2 {[%emt 0:00:08]} Kf7 {[%emt 0:00:25]} 31. Kf3 {[%emt 0:00:21]} Rc7 {[%emt 0:00:45]} 32. Ke4 {[%emt 0:00:21]} Nd7 {[%emt 0:00:53]} 33. Ba3 {[%emt 0:00:11]} Nb8 {[%emt 0:01:47]} 34. g4 {[%emt 0:00:48]} h6 {[%emt 0:02:09]} 35. f4 {[%emt 0:00:25]} Nc6 {[%emt 0:00:38]} 36. fxe5 {[%emt 0:00:22]} Nxe5 {[%emt 0:00:09]} 37. g5 {[%emt 0:00:22]} Ng4 {[%emt 0:01:24]} 38. g6+ {[%emt 0:01:34]} Ke8 {[%emt 0:00:36]} 39. h5 {[%emt 0:00:55]} Ne5 {[%emt 0:01:31]} 40. Rg2 {[%emt 0:00:00]} Rc8 {[%emt 0:00:00]} 41. Bb2 {[%emt 0:03:24]} Nd7 {[%emt 0:00:30]} 42. Bd4 {[%emt 0:00:35]} Kf8 {[%emt 0:00:19]} 43. Rd2 {[%emt 0:01:47]} Rc7 {[%emt 0:03:32]} 44. Be3 {[%emt 0:01:10]} Kg7 {[%emt 0:00:10]} 45. Rd6 {[%emt 0:00:47]} Ne5 {[%emt 0:06:51]} 46. Bxa7 {[%emt 0:03:05]} Rc2 {[%emt 0:00:30]} 47. Bd4 {[%emt 0:01:51]} Rxa2 {[%emt 0:01:47]} 48. Bxe5 {[%emt 0:00:11]} Re2+ {[%emt 0:00:05]} 49. Kf4 {[%emt 0:00:34]} Rxe5 {[%emt 0:00:04]} 50. Rd7+ {[%emt 0:00:08]} Kg8 {[%emt 0:00:02]} 51. Rxb7 {[%emt 0:00:29]} 1-0

[Event "38th Barczay Memorial 2019"]
[Site "Zalakaros"]
[Date "2019.05.29"]
[Round "7.5"]
[White "Radovanovic, Jovica"]
[Black "Horvath, Adam"]
[Result "1-0"]
[ECO "A40"]
[WhiteElo "2306"]
[BlackElo "2531"]
[Annotator "RC"]
[PlyCount "81"]
[EventDate "2019.05.23"]
[EventType "swiss"]
[EventCountry "HUN"]
[SourceTitle "playchess.com"]
[Source "ChessBase"]
[SourceQuality "1"]
[TimeControl "40/5400+30:1800+30"]

1. d4 {[%emt 0:01:02]} Nf6 {[%emt 0:00:06]} 2. c4 {[%emt 0:00:13]} e6 {[%emt 0:00:04]} 3. g3 {[%emt 0:00:10]} Bb4+ {[%emt 0:00:07]} 4. Bd2 {[%emt 0:00:09]} a5 {[%emt 0:00:04]} 5. Bg2 {[%emt 0:00:20]} O-O {[%emt 0:00:05]} 6. Nf3 {[%emt 0:01:38]} b6 {[%emt 0:00:13]} 7. Nc3 {[%emt 0:01:32]} Bb7 {[%emt 0:01:04]} 8. O-O {[%emt 0:00:39]} d6 {[%emt 0:00:10]} 9. Qc2 {[%emt 0:08:11]} Nbd7 {[%emt 0:00:24]} 10. Rad1 {[%emt 0:01:41]} Bxc3 {[%emt 0:00:28]} 11. Bxc3 {[%emt 0:00:26]} Be4 {[%emt 0:00:21]} 12. Qc1 {[%emt 0:00:55]} Qb8 {[%emt 0:01:24]} 13. Qf4 {[%emt 0:09:47]} b5 {[%emt 0:14:34]} 14. b3 {[%emt 0:11:16]} Qb7 {[%emt 0:05:32]} 15. Bh3 {[%emt 0:14:30]} b4 {[%emt 0:23:50]} 16. Bb2 {[%emt 0:01:16]} a4 {[%emt 0:00:04]} 17. Qe3 {[%emt 0:12:25]} a3 {[%emt 0:11:52]} 18. Bc1 {[%emt 0:03:04]} Rfe8 {[%emt 0:10:30]} 19. Bd2 {[%emt 0:07:14]} h6 {[%emt 0:01:26]} 20. Be1 {[%emt 0:00:40]} Rad8 {[%emt 0:01:54]} 21. Nd2 {[%emt 0:01:50]} Bg6 {[%emt 0:00:59]} 22. Bg2 {[%emt 0:06:29]} c6 {[%emt 0:00:35]} 23. Nf3 {[%emt 0:02:44]} Bc2 {[%emt 0:03:07]} 24. Rc1 {[%emt 0:00:30]} Be4 {[%emt 0:00:03]} 25. c5 {[%emt 0:02:36]} d5 {[%emt 0:02:51]} 26. Ne5 {[%emt 0:01:03]} Qb5 {[%emt 0:16:00]} 27. Nc4 {[%emt 0:07:53]} Ng4 {[%emt 0:02:42]} 28. Qf4 {[%emt 0:00:53]} Bxg2 {[%emt 0:00:58]} 29. Kxg2 {[%emt 0:01:25]} dxc4 {[%emt 0:02:17]} 30. bxc4 {[%emt 0:00:05]} Qa4 {[%emt 0:00:41]} 31. Qxg4 {[%emt 0:00:09]} e5 {[%emt 0:00:15]} 32. e3 {[%emt 0:01:01]} exd4 {[%emt 0:00:18]} 33. exd4 {[%emt 0:00:20]} b3 {[%emt 0:00:34]} 34. axb3 {[%emt 0:00:50]} Qxb3 {[%emt 0:00:02]} 35. Qf3 {[%emt 0:00:37]} Qa4 {[%emt 0:00:10]} 36. Bc3 {[%emt 0:01:40]} Rb8 {[%emt 0:01:25]} 37. Ba1 {[%emt 0:00:23]} Rb3 {[%emt 0:00:08]} 38. Qf5 {[%emt 0:00:24]} Nf8 {[%emt 0:01:06]} 39. d5 {[%emt 0:00:38]} Rb4 {[%emt 0:00:10]} 40. Rfe1 {[%emt 0:00:00]} Rd8 {[%emt 0:00:00]} 41. Re7 {[%emt 0:01:59]} 1-0

[Event "38th Barczay Memorial 2019"]
[Site "Zalakaros"]
[Date "2019.05.30"]
[Round "8.1"]
[White "Czebe, Attila"]
[Black "Videki, Sandor"]
[Result "0-1"]
[ECO "A06"]
[WhiteElo "2427"]
[BlackElo "2383"]
[Annotator "ChessBase"]
[PlyCount "76"]
[EventDate "2019.05.23"]
[EventType "swiss"]
[EventCountry "HUN"]
[SourceTitle "playchess.com"]
[Source "ChessBase"]
[SourceQuality "1"]
[TimeControl "40/5400+30:1800+30"]

1. Nf3 {[%emt 0:00:12]} d5 {[%emt 0:00:19]} 2. g3 {[%emt 0:00:05]} g6 {[%emt 0:00:12]} 3. c4 {[%emt 0:00:02]} dxc4 {[%emt 0:01:19]} 4. Na3 {[%emt 0:00:22]} Bg7 {[%emt 0:00:50]} 5. Nxc4 {[%emt 0:00:37]} Nc6 {[%emt 0:01:34]} 6. Bg2 {[%emt 0:03:31]} e5 {[%emt 0:01:50]} 7. O-O {[%emt 0:02:20]} Nge7 {[%emt 0:01:10]} 8. d3 {[%emt 0:06:30]} h6 {[%emt 0:02:29]} 9. Rb1 {[%emt 0:00:51]} a5 {[%emt 0:08:18]} 10. b3 {[%emt 0:00:50]} O-O {[%emt 0:01:48]} 11. Bb2 {[%emt 0:00:18]} f6 {[%emt 0:00:32]} 12. Qd2 {[%emt 0:07:30]} Be6 {[%emt 0:06:12]} 13. Rfd1 {[%emt 0:01:13]} Qc8 {[%emt 0:03:13]} 14. Rbc1 {[%emt 0:11:13]} Rd8 {[%emt 0:03:51]} 15. Qe1 {[%emt 0:02:16]} a4 {[%emt 0:06:13]} 16. b4 {[%emt 0:17:37]} b5 {[%emt 0:00:39]} 17. Na3 {[%emt 0:00:24]} Rb8 {[%emt 0:10:56]} 18. Nh4 {[%emt 0:03:45]} Na7 {[%emt 0:04:32]} 19. d4 {[%emt 0:01:55]} Bxa2 {[%emt 0:07:27]} 20. dxe5 {[%emt 0:01:19]} fxe5 {[%emt 0:01:05]} 21. Rc5 {[%emt 0:06:05]} Qe6 {[%emt 0:06:44]} 22. Rxc7 {[%emt 0:03:53]} Nac6 {[%emt 0:02:34]} 23. Rc1 {[%emt 0:01:05]} Rd6 {[%emt 0:11:57]} 24. Be4 {[%emt 0:01:33]} Bd5 {[%emt 0:02:39]} 25. Bb1 {[%emt 0:07:17]} g5 {[%emt 0:00:25]} 26. e4 {[%emt 0:00:32]} Bb3 {[%emt 0:07:20]} 27. Nf5 {[%emt 0:00:54]} Rd7 {[%emt 0:00:35]} 28. Rxd7 {[%emt 0:03:55]} Qxd7 {[%emt 0:00:05]} 29. Bc2 {[%emt 0:09:57]} Nd4 {[%emt 0:02:21]} 30. Nxe7+ {[%emt 0:03:53]} Qxe7 {[%emt 0:00:05]} 31. Bxd4 {[%emt 0:00:02]} exd4 {[%emt 0:00:26]} 32. Bd3 {[%emt 0:00:04]} Bf8 {[%emt 0:01:39]} 33. Rc5 {[%emt 0:00:14]} Qg7 {[%emt 0:01:59]} 34. Rc6 {[%emt 0:00:39]} Qe5 {[%emt 0:00:50]} 35. Qe2 {[%emt 0:00:29]} Bxb4 {[%emt 0:00:32]} 36. Nxb5 {[%emt 0:01:24]} Bf8 {[%emt 0:00:53]} 37. Bc4+ {[%emt 0:02:06]} Kh8 {[%emt 0:00:04]} 38. Re6 {[%emt 0:01:25]} Bxc4 {[%emt 0:00:29]} 0-1

[Event "38th Barczay Memorial 2019"]
[Site "Zalakaros"]
[Date "2019.05.30"]
[Round "8.3"]
[White "Bokros, Albert"]
[Black "Varga, Zoltan"]
[Result "1-0"]
[ECO "B07"]
[WhiteElo "2461"]
[BlackElo "2457"]
[Annotator "ChessBase"]
[PlyCount "63"]
[EventDate "2019.05.23"]
[EventType "swiss"]
[EventCountry "HUN"]
[SourceTitle "playchess.com"]
[Source "ChessBase"]
[SourceQuality "1"]
[TimeControl "40/5400+30:1800+30"]

1. e4 {[%emt 0:01:23]} d6 {[%emt 0:10:37]} 2. d4 {[%emt 0:00:12]} Nf6 {[%emt 0:00:06]} 3. Nc3 {[%emt 0:00:18]} Nbd7 {[%emt 0:00:17]} 4. g3 {[%emt 0:03:30]} e5 {[%emt 0:01:14]} 5. Nge2 {[%emt 0:00:06]} c6 {[%emt 0:03:01]} 6. a4 {[%emt 0:02:29]} Be7 {[%emt 0:00:55]} 7. Bg2 {[%emt 0:02:37]} O-O {[%emt 0:00:10]} 8. O-O {[%emt 0:00:10]} Re8 {[%emt 0:00:55]} 9. h3 {[%emt 0:01:37]} Bf8 {[%emt 0:01:24]} 10. Be3 {[%emt 0:07:44]} exd4 {[%emt 0:03:53]} 11. Bxd4 {[%emt 0:00:34]} Nc5 {[%emt 0:04:02]} 12. f3 {[%emt 0:12:11]} a5 {[%emt 0:07:00]} 13. Qd2 {[%emt 0:07:01]} Nfd7 {[%emt 0:02:25]} 14. Rad1 {[%emt 0:03:05]} Qc7 {[%emt 0:00:47]} 15. b3 {[%emt 0:02:24]} b6 {[%emt 0:00:40]} 16. Bf2 {[%emt 0:03:17]} Ba6 {[%emt 0:04:26]} 17. Rfe1 {[%emt 0:01:02]} Rac8 {[%emt 0:00:31]} 18. Nd4 {[%emt 0:02:45]} g6 {[%emt 0:00:55]} 19. g4 {[%emt 0:04:34]} Bg7 {[%emt 0:04:05]} 20. Bg3 {[%emt 0:02:44]} Nb7 {[%emt 0:00:25]} 21. Kh2 {[%emt 0:02:43]} Ndc5 {[%emt 0:19:20]} 22. f4 {[%emt 0:05:25]} Qe7 {[%emt 0:02:47]} 23. e5 {[%emt 0:05:49]} d5 {[%emt 0:02:46]} 24. f5 {[%emt 0:03:02]} Qd7 {[%emt 0:03:00]} 25. Qf4 {[%emt 0:03:12]} Kh8 {[%emt 0:01:22]} 26. Nf3 {[%emt 0:03:16]} Nd8 {[%emt 0:02:29]} 27. h4 {[%emt 0:02:00]} Qb7 {[%emt 0:01:49]} 28. h5 {[%emt 0:01:58]} gxh5 {[%emt 0:01:15]} 29. gxh5 {[%emt 0:01:21]} h6 {[%emt 0:00:49]} 30. Bh4 {[%emt 0:01:40]} Rg8 {[%emt 0:01:18]} 31. Bh3 {[%emt 0:00:37]} Bf8 {[%emt 0:01:11]} 32. Rg1 {[%emt 0:00:43]} 1-0

[Event "38th Barczay Memorial 2019"]
[Site "Zalakaros"]
[Date "2019.05.30"]
[Round "8.4"]
[White "Srinath, Rao S.V."]
[Black "Radovanovic, Jovica"]
[Result "1/2-1/2"]
[ECO "B22"]
[WhiteElo "2395"]
[BlackElo "2306"]
[Annotator "ChessBase"]
[PlyCount "81"]
[EventDate "2019.05.23"]
[EventType "swiss"]
[EventCountry "HUN"]
[SourceTitle "playchess.com"]
[Source "ChessBase"]
[SourceQuality "1"]
[TimeControl "40/5400+30:1800+30"]

1. e4 {[%emt 0:00:40]} c5 {[%emt 0:01:12]} 2. c3 {[%emt 0:01:18]} d5 {[%emt 0:00:11]} 3. exd5 {[%emt 0:00:06]} Qxd5 {[%emt 0:00:04]} 4. d4 {[%emt 0:00:07]} g6 {[%emt 0:00:24]} 5. Nf3 {[%emt 0:00:18]} Bg7 {[%emt 0:00:12]} 6. Na3 {[%emt 0:00:18]} cxd4 {[%emt 0:00:28]} 7. Nb5 {[%emt 0:00:18]} Na6 {[%emt 0:00:28]} 8. cxd4 {[%emt 0:02:01]} Nf6 {[%emt 0:02:00]} 9. Be2 {[%emt 0:02:45]} O-O {[%emt 0:00:20]} 10. O-O {[%emt 0:00:31]} Bf5 {[%emt 0:02:40]} 11. Bf4 {[%emt 0:01:18]} Rfc8 {[%emt 0:06:26]} 12. Nc3 {[%emt 0:01:49]} Qa5 {[%emt 0:07:57]} 13. Qb3 {[%emt 0:09:24]} Qb6 {[%emt 0:01:53]} 14. Ne5 {[%emt 0:03:02]} Qxb3 {[%emt 0:21:18]} 15. axb3 {[%emt 0:00:05]} Nb4 {[%emt 0:00:05]} 16. Bf3 {[%emt 0:00:27]} Nc6 {[%emt 0:07:56]} 17. Nxc6 {[%emt 0:05:09]} bxc6 {[%emt 0:00:05]} 18. Rfe1 {[%emt 0:00:46]} Be6 {[%emt 0:00:54]} 19. Ra5 {[%emt 0:11:42]} Nd5 {[%emt 0:17:06]} 20. Be5 {[%emt 0:08:23]} Bxe5 {[%emt 0:01:27]} 21. Rxe5 {[%emt 0:00:12]} Rab8 {[%emt 0:01:44]} 22. Bxd5 {[%emt 0:15:15]} cxd5 {[%emt 0:00:44]} 23. Ra3 {[%emt 0:00:06]} Rb4 {[%emt 0:01:02]} 24. h3 {[%emt 0:03:24]} Rxd4 {[%emt 0:00:10]} 25. Rxa7 {[%emt 0:00:08]} Kf8 {[%emt 0:04:22]} 26. Ra5 {[%emt 0:08:26]} Rd8 {[%emt 0:00:05]} 27. Ra4 {[%emt 0:00:35]} Rxa4 {[%emt 0:15:18]} 28. bxa4 {[%emt 0:03:54]} d4 {[%emt 0:00:05]} 29. Ne4 {[%emt 0:00:11]} d3 {[%emt 0:02:42]} 30. Nd2 {[%emt 0:00:09]} Rb8 {[%emt 0:03:20]} 31. Re3 {[%emt 0:01:11]} Rxb2 {[%emt 0:01:19]} 32. Rxd3 {[%emt 0:00:05]} Ra2 {[%emt 0:00:08]} 33. Rd4 {[%emt 0:02:49]} Kg7 {[%emt 0:00:45]} 34. Ne4 {[%emt 0:02:33]} Bf5 {[%emt 0:01:12]} 35. Nc3 {[%emt 0:00:43]} Ra1+ {[%emt 0:00:14]} 36. Kh2 {[%emt 0:00:19]} Bc2 {[%emt 0:00:19]} 37. Rd7 {[%emt 0:01:18]} Ra3 {[%emt 0:00:46]} 38. Rc7 {[%emt 0:08:53]} Bxa4 {[%emt 0:00:22]} 39. Nxa4 {[%emt 0:00:23]} Rxa4 {[%emt 0:00:05]} 40. Rxe7 {[%emt 0:00:00]} h5 {[%emt 0:00:00]} 41. g3 1/2-1/2

[Event "38th Barczay Memorial 2019"]
[Site "Zalakaros"]
[Date "2019.05.30"]
[Round "8.5"]
[White "Doric, Nenad"]
[Black "Bagi, Mate"]
[Result "1/2-1/2"]
[ECO "C68"]
[WhiteElo "2262"]
[BlackElo "2450"]
[Annotator "ChessBase"]
[PlyCount "37"]
[EventDate "2019.05.23"]
[EventType "swiss"]
[EventCountry "HUN"]
[SourceTitle "playchess.com"]
[Source "ChessBase"]
[SourceQuality "1"]
[TimeControl "40/5400+30:1800+30"]

1. e4 {[%emt 0:01:18]} e5 {[%emt 0:01:50]} 2. Nf3 {[%emt 0:00:12]} Nc6 {[%emt 0:00:09]} 3. Bb5 {[%emt 0:00:34]} a6 {[%emt 0:00:59]} 4. Bxc6 {[%emt 0:00:26]} dxc6 {[%emt 0:00:11]} 5. O-O {[%emt 0:00:11]} Bg4 {[%emt 0:06:23]} 6. h3 {[%emt 0:00:08]} h5 {[%emt 0:00:22]} 7. d3 {[%emt 0:00:12]} Qf6 {[%emt 0:01:34]} 8. Be3 {[%emt 0:01:03]} Bxf3 {[%emt 0:01:56]} 9. Qxf3 {[%emt 0:00:08]} Qxf3 {[%emt 0:00:14]} 10. gxf3 {[%emt 0:00:05]} Bd6 {[%emt 0:03:51]} 11. Nd2 {[%emt 0:01:06]} Ne7 {[%emt 0:02:41]} 12. Rfb1 {[%emt 0:02:25]} Ng6 {[%emt 0:06:07]} 13. Kf1 {[%emt 0:07:40]} Nf8 {[%emt 0:05:55]} 14. b4 {[%emt 0:06:19]} Ne6 {[%emt 0:02:23]} 15. a4 {[%emt 0:02:57]} g6 {[%emt 0:05:29]} 16. Nc4 {[%emt 0:06:36]} f5 {[%emt 0:13:16]} 17. c3 {[%emt 0:10:27]} Rf8 {[%emt 0:09:13]} 18. Ke2 {[%emt 0:05:22]} Kd7 {[%emt 0:03:07]} 19. Rg1 {[%emt 0:04:14]} 1/2-1/2

[Event "38th Barczay Memorial 2019"]
[Site "Zalakaros"]
[Date "2019.05.30"]
[Round "8.6"]
[White "Horvath, Jozsef"]
[Black "Meszaros, Tamas"]
[Result "1-0"]
[ECO "A46"]
[WhiteElo "2451"]
[BlackElo "2385"]
[Annotator "ChessBase"]
[PlyCount "49"]
[EventDate "2019.05.23"]
[EventType "swiss"]
[EventCountry "HUN"]
[SourceTitle "playchess.com"]
[Source "ChessBase"]
[SourceQuality "1"]
[TimeControl "40/5400+30:1800+30"]

1. d4 {[%emt 0:07:27]} Nf6 {[%emt 0:00:07]} 2. Nf3 {[%emt 0:00:05]} e6 {[%emt 0:00:05]} 3. e3 {[%emt 0:00:16]} b6 {[%emt 0:00:31]} 4. Bd3 {[%emt 0:00:27]} Bb7 {[%emt 0:00:05]} 5. O-O {[%emt 0:00:21]} Be7 {[%emt 0:00:13]} 6. c4 {[%emt 0:00:26]} d5 {[%emt 0:00:10]} 7. Nc3 {[%emt 0:00:38]} O-O {[%emt 0:00:22]} 8. b3 {[%emt 0:00:21]} c5 {[%emt 0:02:42]} 9. dxc5 {[%emt 0:05:35]} bxc5 {[%emt 0:03:50]} 10. cxd5 {[%emt 0:00:41]} exd5 {[%emt 0:00:07]} 11. Bb2 {[%emt 0:00:20]} Na6 {[%emt 0:09:54]} 12. Rc1 {[%emt 0:08:12]} Ne4 {[%emt 0:25:02]} 13. Ne5 {[%emt 0:23:20]} Nxc3 {[%emt 0:18:17]} 14. Bxc3 {[%emt 0:01:04]} Bf6 {[%emt 0:03:03]} 15. Qg4 {[%emt 0:28:52]} Bc8 {[%emt 0:31:20]} 16. Qh5 {[%emt 0:12:48]} g6 {[%emt 0:00:03]} 17. Qf3 {[%emt 0:00:30]} Qd6 {[%emt 0:00:22]} 18. Qf4 {[%emt 0:03:37]} d4 {[%emt 0:02:15]} 19. exd4 {[%emt 0:01:05]} cxd4 {[%emt 0:00:11]} 20. Bxd4 {[%emt 0:01:41]} Rd8 {[%emt 0:00:48]} 21. Rc6 {[%emt 0:01:11]} Qxd4 {[%emt 0:00:31]} 22. Qxf6 {[%emt 0:00:19]} Be6 {[%emt 0:00:17]} 23. Rxe6 {[%emt 0:01:31]} fxe6 {[%emt 0:00:04]} 24. Bxa6 {[%emt 0:00:28]} Rd6 {[%emt 0:01:06]} 25. Bc4 {[%emt 0:00:28]} 1-0

[Event "38th Barczay Memorial 2019"]
[Site "Zalakaros"]
[Date "2019.05.30"]
[Round "8.7"]
[White "Tompa, Janos"]
[Black "Almasi, Istvan"]
[Result "1/2-1/2"]
[ECO "B06"]
[WhiteElo "2356"]
[BlackElo "2407"]
[Annotator "ChessBase"]
[PlyCount "90"]
[EventDate "2019.05.23"]
[EventType "swiss"]
[EventCountry "HUN"]
[SourceTitle "playchess.com"]
[Source "ChessBase"]
[SourceQuality "1"]
[TimeControl "40/5400+30:1800+30"]

1. e4 {[%emt 0:00:12]} g6 {[%emt 0:00:37]} 2. Nf3 {[%emt 0:00:15]} Bg7 {[%emt 0:00:24]} 3. d4 {[%emt 0:00:13]} d6 {[%emt 0:00:34]} 4. Nc3 {[%emt 0:00:34]} a6 {[%emt 0:00:30]} 5. Bg5 {[%emt 0:03:20]} h6 {[%emt 0:02:57]} 6. Be3 {[%emt 0:08:15]} b5 {[%emt 0:01:23]} 7. a3 {[%emt 0:00:40]} Bb7 {[%emt 0:04:36]} 8. Qd2 {[%emt 0:00:52]} Nf6 {[%emt 0:00:40]} 9. d5 {[%emt 0:00:30]} c6 {[%emt 0:03:24]} 10. Bd3 {[%emt 0:13:41]} cxd5 {[%emt 0:06:09]} 11. Nxd5 {[%emt 0:00:06]} Nxd5 {[%emt 0:05:46]} 12. exd5 {[%emt 0:00:10]} Nd7 {[%emt 0:03:30]} 13. c4 {[%emt 0:03:06]} Nc5 {[%emt 0:14:12]} 14. Bxc5 {[%emt 0:02:56]} dxc5 {[%emt 0:00:17]} 15. O-O {[%emt 0:00:26]} O-O {[%emt 0:01:44]} 16. Rfe1 {[%emt 0:01:20]} Qd6 {[%emt 0:06:15]} 17. Rad1 {[%emt 0:02:37]} Rab8 {[%emt 0:01:57]} 18. Qe3 {[%emt 0:06:38]} Rfe8 {[%emt 0:02:28]} 19. cxb5 {[%emt 0:06:50]} Bxd5 {[%emt 0:06:11]} 20. Bc4 {[%emt 0:02:39]} e6 {[%emt 0:00:06]} 21. Bxd5 {[%emt 0:01:34]} exd5 {[%emt 0:00:03]} 22. Qxe8+ {[%emt 0:00:07]} Rxe8 {[%emt 0:00:05]} 23. Rxe8+ {[%emt 0:00:08]} Kh7 {[%emt 0:01:26]} 24. bxa6 {[%emt 0:00:12]} Qxa6 {[%emt 0:00:34]} 25. Rxd5 {[%emt 0:01:47]} Qc6 {[%emt 0:02:19]} 26. Rdd8 {[%emt 0:01:37]} Bxb2 {[%emt 0:01:53]} 27. Re7 {[%emt 0:07:27]} Kg7 {[%emt 0:24:49]} 28. Rdd7 {[%emt 0:01:34]} g5 {[%emt 0:00:28]} 29. Rxf7+ {[%emt 0:02:29]} Kg6 {[%emt 0:00:02]} 30. Rc7 {[%emt 0:02:29]} Qe4 {[%emt 0:00:43]} 31. Rfe7 {[%emt 0:00:46]} Qd5 {[%emt 0:02:16]} 32. Rcd7 {[%emt 0:03:29]} Qc6 {[%emt 0:01:17]} 33. Rd2 {[%emt 0:02:42]} Qb6 {[%emt 0:00:52]} 34. h3 {[%emt 0:02:47]} c4 {[%emt 0:03:53]} 35. Rde2 {[%emt 0:11:21]} Kf6 {[%emt 0:00:39]} 36. a4 {[%emt 0:01:20]} Ba3 {[%emt 0:00:51]} 37. R7e4 {[%emt 0:04:32]} c3 {[%emt 0:00:56]} 38. Nd4 {[%emt 0:00:40]} Qb1+ {[%emt 0:00:37]} 39. Kh2 {[%emt 0:00:13]} Bc5 {[%emt 0:00:53]} 40. Nc2 {[%emt 0:00:00]} Kf7 {[%emt 0:00:00]} 41. Ne1 {[%emt 0:06:44]} Kg7 {[%emt 0:05:20]} 42. g3 {[%emt 0:00:55]} Bxf2 {[%emt 0:01:58]} 43. Re7+ {[%emt 0:03:00]} Kf8 {[%emt 0:00:11]} 44. Re8+ {[%emt 0:00:23]} Kf7 {[%emt 0:00:08]} 45. R8e7+ {[%emt 0:00:36]} Kf8 {[%emt 0:00:02]} 1/2-1/2